Workbook

Sheet Figure7a
A1: intrathecal treatment with veh/ TPA023B and chloroquine calf injection
A3: time spent biting in sec
B4: Vehicle | D4: TPA023B | I4: time spent biting in sec | W4: avg | X4: SEM | Y4: avg | Z4: SEM
A5: time | B5: mean | C5: SEM | D5: mean | E5: SEM | J5: Vehicle | K5: TPA023B | L5: TPA023B | M5: Vehicle | N5: Vehicle | O5: Vehicle | P5: Vehicle | Q5: Vehicle | R5: TPA023B | S5: TPA023B | T5: Vehicle | U5: TPA023B | V5: TPA023B | W5: Vehicle | Y5: TPA023B
A6: 0 | B6: 9.71 | C6: 2.93 | D6: 2.67 | E6: 1.61 | I6: 0 | J6: 0 | K6: 0 | L6: 0 | M6: 21 | N6: 8 | O6: 16 | P6: 5 | Q6: 3 | R6: 10 | S6: 4 | T6: 15 | U6: 2 | V6: 0 | W6: =AVERAGE(J6,M6,N6,O6,P6,Q6,T6) -> 9.714285714 | X6: =STDEV(J6,M6,N6,O6,P6,Q6,T6)/SQRT(COUNT(J6,M6,N6,O6,P6,Q6,T6)) -> 2.925375724 | Y6: =AVERAGE(K6,L6,R6,S6,U6,V6) -> 2.666666667 | Z6: =STDEV(K6,L6,R6,S6,U6,V6)/SQRT(COUNT(K6,L6,R6,S6,U6,V6)) -> 1.605545944
A7: 1 | B7: 18.57 | C7: 7.95 | D7: 6.5 | E7: 2.58 | I7: 1 | J7: 2 | K7: 1 | L7: 1 | M7: 18 | N7: 0 | O7: 47 | P7: 0 | Q7: 15 | R7: 4 | S7: 17 | T7: 48 | U7: 11 | V7: 5 | W7: =AVERAGE(J7,M7,N7,O7,P7,Q7,T7) -> 18.57142857 | X7: =STDEV(J7,M7,N7,O7,P7,Q7,T7)/SQRT(COUNT(J7,M7,N7,O7,P7,Q7,T7)) -> 7.945819934 | Y7: =AVERAGE(K7,L7,R7,S7,U7,V7) -> 6.5 | Z7: =STDEV(K7,L7,R7,S7,U7,V7)/SQRT(COUNT(K7,L7,R7,S7,U7,V7)) -> 2.578759392
A8: 2 | B8: 11.57 | C8: 6.77 | D8: 1.67 | E8: 1.31 | I8: 2 | J8: 3 | K8: 0 | L8: 0 | M8: 0 | N8: 0 | O8: 48 | P8: 0 | Q8: 22 | R8: 2 | S8: 0 | T8: 8 | U8: 8 | V8: 0 | W8: 11.57142857 | X8: 6.767770762 | Y8: 1.666666667 | Z8: 1.308094458
A9: 3 | B9: 17.86 | C9: 7.86 | D9: 0.83 | E9: 0.54 | I9: 3 | J9: 0 | K9: 0 | L9: 0 | M9: 0 | N9: 2 | O9: 57 | P9: 31 | Q9: 18 | R9: 0 | S9: 0 | T9: 17 | U9: 3 | V9: 2 | W9: 17.85714286 | X9: 7.860172576 | Y9: 0.8333333333 | Z9: 0.5426273532
A10: 4 | B10: 28 | C10: 7.58 | D10: 1.67 | E10: 1.67 | I10: 4 | J10: 0 | K10: 0 | L10: 0 | M10: 7 | N10: 27 | O10: 60 | P10: 31 | Q10: 31 | R10: 0 | S10: 0 | T10: 40 | U10: 10 | V10: 0 | W10: 28 | X10: 7.57816412 | Y10: 1.666666667 | Z10: 1.666666667
A11: 5 | B11: 20.14 | C11: 4.6 | D11: 3.67 | E11: 3.28 | I11: 5 | J11: 11 | K11: 0 | L11: 0 | M11: 37 | N11: 7 | O11: 26 | P11: 8 | Q11: 19 | R11: 2 | S11: 0 | T11: 33 | U11: 20 | V11: 0 | W11: 20.14285714 | X11: 4.600354911 | Y11: 3.666666667 | Z11: 3.282952601
A12: 6 | B12: 16 | C12: 3.72 | D12: 0.33 | E12: 0.33 | I12: 6 | J12: 15 | K12: 0 | L12: 0 | M12: 4 | N12: 23 | O12: 10 | P12: 11 | Q12: 15 | R12: 0 | S12: 0 | T12: 34 | U12: 2 | V12: 0 | W12: 16 | X12: 3.716116765 | Y12: 0.3333333333 | Z12: 0.3333333333
A13: 7 | B13: 10.43 | C13: 5.7 | D13: 1 | E13: 0.68 | I13: 7 | J13: 15 | K13: 0 | L13: 2 | M13: 0 | N13: 0 | O13: 0 | P13: 6 | Q13: 10 | R13: 0 | S13: 4 | T13: 42 | U13: 0 | V13: 0 | W13: 10.42857143 | X13: 5.698191621 | Y13: 1 | Z13: 0.6831300511
A14: 8 | B14: 4.71 | C14: 1.71 | D14: 2 | E14: 2 | I14: 8 | J14: 3 | K14: 0 | L14: 0 | M14: 0 | N14: 9 | O14: 0 | P14: 2 | Q14: 8 | R14: 0 | S14: 0 | T14: 11 | U14: 0 | V14: 12 | W14: 4.714285714 | X14: 1.714285714 | Y14: 2 | Z14: 2
A15: 9 | B15: 7.71 | C15: 3.24 | D15: 5.5 | E15: 3.77 | I15: 9 | J15: 18 | K15: 0 | L15: 2 | M15: 0 | N15: 2 | O15: 5 | P15: 0 | Q15: 21 | R15: 0 | S15: 24 | T15: 8 | U15: 2 | V15: 5 | W15: 7.714285714 | X15: 3.241944491 | Y15: 5.5 | Z15: 3.774917218
A16: 10 | B16: 8 | C16: 3.03 | D16: 0 | E16: 0 | I16: 10 | J16: 10 | K16: 0 | L16: 0 | M16: 21 | N16: 8 | O16: 0 | P16: 0 | Q16: 15 | R16: 0 | S16: 0 | T16: 2 | U16: 0 | V16: 0 | W16: 8 | X16: 3.031579818 | Y16: 0 | Z16: 0
I17: sum | J17: =SUM(J6:J16) -> 77 | K17: =SUM(K6:K16) -> 1 | L17: 5 | M17: 108 | N17: 86 | O17: 269 | P17: 94 | Q17: 177 | R17: 18 | S17: 49 | T17: 258 | U17: 58 | V17: 24
A20: total time spent biting in sec
A21: mouse | B21: Vehicle | C21: TPA023B
A22: 1 | B22: =J17 -> 77 | C22: =K17 -> 1
A23: 2 | B23: =M17 -> 108 | C23: =L17 -> 5
A24: 3 | B24: =N17 -> 86 | C24: =R17 -> 18
A25: 4 | B25: =O17 -> 269 | C25: =S17 -> 49
A26: 5 | B26: =P17 -> 94 | C26: =U17 -> 58
A27: 6 | B27: =Q17 -> 177 | C27: =V17 -> 24
A28: 7 | B28: =T17 -> 258
A32: avg | B32: =AVERAGE(B22:B28) -> 152.7142857 | C32: =AVERAGE(C22:C28) -> 25.83333333
A33: n | B33: =COUNT(B22:B28) -> 7 | C33: =COUNT(C22:C28) -> 6
A34: SD | B34: =STDEV(B22:B28) -> 82.48982621 | C34: =STDEV(C22:C28) -> 23.18117052
A35: SEM | B35: =B34/SQRT(B33) -> 31.17822369 | C35: =C34/SQRT(C33) -> 9.463673236
A37: ttest | C37: =TTEST(B22:B28,C22:C27,2,2) -> 0.003984299494

Sheet 7b
A1: acute itch (chloroquine calf injection)
A2: time spent biting in sec (30 min)
A5: treatment | B5: Veh | C5: TPA023B | D5: Veh | E5: TPA023B | F5: Veh | G5: TPA023B
A6: mouse | B6: alpha2 fl/fl | C6: alpha2 fl/fl | D6: hoxB8a2-/- | E6: hoxB8a2-/- | F6: alpha2 R/R | G6: alpha2 R/R
A7: 1 | B7: 251 | C7: 15 | D7: 241 | E7: 179 | F7: 452 | G7: 208
A8: 2 | B8: 430 | C8: 73 | D8: 368 | E8: 325 | F8: 292 | G8: 260
A9: 3 | B9: 289 | C9: 89 | D9: 416 | E9: 343 | F9: 320 | G9: 268
A10: 4 | B10: 451 | C10: 98 | D10: 162 | E10: 137 | F10: 468 | G10: 149
A11: 5 | B11: 281 | C11: 127 | D11: 294 | E11: 223 | F11: 416 | G11: 187
A12: 6 | D12: 591 | E12: 277 | F12: 409
A16: avg | B16: =AVERAGE(B6:B12) -> 340.4 | C16: 80.4 | D16: 345.3333333 | E16: 247.3333333 | F16: 392.8333333 | G16: 214.4
A17: n | B17: =COUNT(B6:B12) -> 5 | C17: 5 | D17: 6 | E17: 6 | F17: 6 | G17: 5
A18: SD | B18: =STDEV(B6:B12) -> 92.76745119 | C18: 41.49457796 | D18: 150.3271987 | E18: 81.85271325 | F18: 71.30334261 | G18: 50.05297194
A19: SEM | B19: =B18/SQRT(B17) -> 41.48686539 | C19: 18.5569394 | D19: 61.37082188 | E19: 33.41623025 | F19: 29.10946772 | G19: 22.38436955

Sheet 7c
A1: acute itch (chloroquine)
A3: total time spent scratching in sec (30 min)
B4: a2fl/fl | C4: a2fl/fl | D4: sns_a2-/- | E4: sns_a2-/-
A5: mouse | B5: Veh | C5: TPA023B | D5: Veh | E5: TPA023B
A6: 1 | B6: 242 | C6: 50 | D6: 194 | E6: 26
A7: 2 | B7: 287 | C7: 100 | D7: 200 | E7: 47
A8: 3 | B8: 302 | C8: 115 | D8: 255 | E8: 52
A9: 4 | B9: 315 | C9: 123 | D9: 363 | E9: 60
A10: 5 | B10: 392 | C10: 139 | D10: 505 | E10: 118
A14: avg | B14: =AVERAGE(B4:B10) -> 307.6 | C14: =AVERAGE(C4:C10) -> 105.4 | D14: =AVERAGE(D4:D10) -> 303.4 | E14: =AVERAGE(E4:E10) -> 60.6
A15: n | B15: =COUNT(B4:B10) -> 5 | C15: =COUNT(C4:C10) -> 5 | D15: =COUNT(D4:D10) -> 5 | E15: =COUNT(E4:E10) -> 5
A16: SD | B16: =STDEV(B4:B10) -> 54.62874701 | C16: =STDEV(C4:C10) -> 34.01911228 | D16: =STDEV(D4:D10) -> 131.5268034 | E16: =STDEV(E4:E10) -> 34.46447446
A17: SEM | B17: =B16/SQRT(B15) -> 24.43071837 | C17: =C16/SQRT(C15) -> 15.21380952 | D17: =D16/SQRT(D15) -> 58.82057463 | E17: =E16/SQRT(E15) -> 15.41298154

Sheet 7d
A1: 10 nmol BNP i.t. in C57BL6mice_ scratching bouts
A3: total number of scratching bouts (60 min)
A4: mouse | B4: Vehicle | C4: TPA023B
A5: 1 | B5: 15 | C5: 0
A6: 2 | B6: 9 | C6: 6
A7: 3 | B7: 18 | C7: 0
A8: 4 | B8: 10 | C8: 0
A9: 5 | B9: 23 | C9: 0
A10: 6 | B10: 20 | C10: 0
A11: 7 | C11: 0
A15: avg | B15: =AVERAGE(B5:B11) -> 15.83333333 | C15: =AVERAGE(C5:C11) -> 0.8571428571
A16: n | B16: =COUNT(B5:B11) -> 6 | C16: =COUNT(C5:C11) -> 7
A17: SD | B17: =STDEV(B5:B11) -> 5.564770136 | C17: =STDEV(C5:C11) -> 2.267786838
A18: SEM | B18: =B17/SQRT(B16) -> 2.271807895 | C18: =C17/SQRT(C16) -> 0.8571428571

Sheet 7e
A1: 1 nmol GRP i.t. in C57BL6mice_ scratching bouts
A4: total number of scratching bouts (60 min)
A5: mouse | B5: Vehicle | C5: TPA023B
A6: 1 | B6: 19 | C6: 0
A7: 2 | B7: 76 | C7: 10
A8: 3 | B8: 62 | C8: 0
A9: 4 | B9: 20 | C9: 0
A10: 5 | B10: 28 | C10: 11
A11: 6 | B11: 40 | C11: 0
A12: 7 | B12: 55 | C12: 0
A16: avg | B16: =AVERAGE(B6:B12) -> 42.85714286 | C16: =AVERAGE(C6:C12) -> 3
A17: n | B17: =COUNT(B6:B12) -> 7 | C17: =COUNT(C6:C12) -> 7
A18: SD | B18: =STDEV(B6:B12) -> 22.10903715 | C18: =STDEV(C6:C12) -> 5.131601439
A19: SEM | B19: =B18/SQRT(B17) -> 8.356430576 | C19: =C18/SQRT(C17) -> 1.939563034
